fUST/lending_fUST_20250616
["ID","MTS","AMOUNT","RATE_DAILY","PERIOD"]
[366124498,1750077038882,-420.0,0.00020384,4]
[366124500,1750077038892,-460.0,0.00020384,4]
[366124502,1750077038904,-427.01416206,0.00020384,4]
[366124504,1750077038914,-619.14,0.00020384,4]
[366124506,1750077038924,-460.0,0.00020385,4]
[366124508,1750077038933,-460.0,0.00020385,4]
[366124510,1750077038943,-460.0,0.00020385,4]
[366124512,1750077038954,-460.0,0.00020385,4]
[366124514,1750077038963,-460.0,0.00020385,4]
[366124516,1750077038973,-218.83636973,0.00020385,4]
[366124518,1750077038982,-460.0,0.00020385,4]
[366124520,1750077038992,-351.5387891,0.00020385,4]
[366124522,1750077039001,-460.0,0.00020385,4]
[366124524,1750077039010,-460.0,0.00020385,4]
[366124526,1750077039020,-347.15891941,0.00020385,4]
[366124528,1750077039030,-460.0,0.00020385,4]
[366124530,1750077039039,-196.750144,0.00020385,2]
[366124532,1750077039049,-343.36540105,0.00020385,4]
[366124534,1750077039058,-492.52054,0.00020385,2]
[366124536,1750077039067,-492.52054,0.00020385,2]
[366124538,1750077039077,-492.52054,0.00020385,2]
[366124540,1750077039086,-492.52054,0.00020385,2]
[366124542,1750077039096,-492.52054,0.00020385,2]
[366124544,1750077039105,-492.52054,0.00020385,2]
[366124546,1750077039115,-264.93110399,0.00020385,4]
[366124548,1750077039124,-251.36306871,0.00020385,4]
[366124550,1750077039134,-460.0,0.00020385,4]
[366124552,1750077039144,-460.0,0.00020385,4]
[366124554,1750077039153,-460.0,0.00020385,4]
[366124556,1750077039167,-460.0,0.00020385,4]
[366124558,1750077039176,-178.94622705,0.00020385,4]
[366124560,1750077039185,-460.0,0.00020385,4]
[366124562,1750077039195,-366.28179356,0.00020385,4]
[366124564,1750077039205,-460.0,0.00020385,4]
[366124566,1750077039214,-460.0,0.00020385,4]
[366124568,1750077039224,-460.0,0.00020385,4]
[366124569,1750077039233,-460.0,0.00020385,4]
[366124571,1750077039243,-460.0,0.00020385,4]
[366124573,1750077039253,-500.0,0.00020385,4]
[366124575,1750077039263,-460.0,0.00020385,4]
[366124577,1750077039272,-460.0,0.00020385,4]
[366124579,1750077039283,-460.0,0.00020385,4]
[366124581,1750077039292,-460.0,0.00020385,4]
[366124583,1750077039302,-460.0,0.00020385,4]
[366124585,1750077039311,-460.0,0.00020385,4]
[366124587,1750077039321,-1368.19,0.00020385,4]
[366124589,1750077039331,-500.0,0.00020385,4]
[366124591,1750077039340,-460.0,0.00020385,4]
[366124593,1750077039350,-410.0,0.00020385,4]
[366124595,1750077039360,-466.98698619,0.00020385,4]
[366124597,1750077039370,-460.0,0.00020385,4]
[366124599,1750077039379,-460.0,0.00020385,4]
[366124601,1750077039389,-460.0,0.00020385,4]
[366124603,1750077039398,-658.42,0.00020385,4]
[366124605,1750077039407,-460.0,0.00020385,4]
[366124607,1750077039417,-460.0,0.00020385,4]
[366124609,1750077039430,-460.0,0.00020385,4]
[366124611,1750077039440,-460.0,0.00020385,4]
[366124612,1750077039450,-460.0,0.00020385,4]
[366124614,1750077039459,-460.0,0.00020385,4]
[366124616,1750077039468,-460.0,0.00020385,4]
[366124618,1750077039478,-460.0,0.00020385,4]
[366124620,1750077039487,-759.75,0.00020385,4]
[366124622,1750077039498,-460.0,0.00020385,4]
[366124624,1750077039508,-460.0,0.00020385,4]
[366124626,1750077039517,-239.04150137,0.00020385,4]
[366124628,1750077039526,-460.0,0.00020385,4]
[366124630,1750077039536,-151.0,0.00020385,2]
[366124632,1750077039545,-151.0,0.00020385,2]
[366124634,1750077039555,-151.0,0.00020385,2]
[366124636,1750077039564,-151.0,0.00020385,2]
[366124638,1750077039573,-203.7984,0.00020385,2]
[366124640,1750077039582,-460.0,0.00020385,4]
[366124642,1750077039592,-450.14068209,0.00020385,4]
[366124644,1750077039601,-460.0,0.00020385,4]
[366124646,1750077039611,-460.0,0.00020385,4]
[366124648,1750077039621,-460.0,0.00020385,4]
[366124649,1750077039630,-460.0,0.00020385,4]
[366124651,1750077039644,-460.0,0.00020385,4]
[366124653,1750077039654,-460.0,0.00020385,4]
[366124656,1750077039664,-460.0,0.00020385,4]
[366124657,1750077039674,-268.098194,0.00020385,2]
[366124659,1750077039684,-268.098194,0.00020385,2]
[366124661,1750077039694,-260.0,0.00020385,4]
[366124663,1750077039704,-268.098194,0.00020385,2]
[366124665,1750077039715,-452.42377398,0.00020385,4]
[366124667,1750077039724,-460.0,0.00020385,4]
[366124669,1750077039734,-268.098194,0.00020385,2]
[366124671,1750077039743,-460.0,0.00020385,4]
[366124673,1750077039755,-268.098194,0.00020385,2]
[366124675,1750077039764,-460.0,0.00020385,4]
[366124677,1750077039774,-268.098187,0.00020385,2]
[366124679,1750077039783,-460.0,0.00020385,4]
[366124681,1750077039793,-269.80600474,0.00020385,4]
[366124684,1750077039815,-460.0,0.00020385,4]
[366124686,1750077039826,-371.04285288,0.00020385,4]
[366124688,1750077039838,-460.0,0.00020385,4]
[366124690,1750077039847,-460.0,0.00020385,4]
[366124692,1750077039858,-227.59448699,0.00020385,4]
[366124694,1750077039868,-420.88571535,0.00020385,4]
[366124696,1750077039879,-460.0,0.00020385,4]
[366124698,1750077039889,-460.0,0.00020385,4]
[366124700,1750077039899,-422.35595763,0.00020385,4]
[366124702,1750077039910,-460.0,0.00020385,4]
[366124705,1750077039924,-460.0,0.00020385,4]
[366124707,1750077039935,-607.7789417,0.00020385,4]
[366124709,1750077039944,-460.0,0.00020385,4]
[366124711,1750077039955,-460.0,0.00020385,4]
[366124713,1750077039965,-651.99,0.00020385,4]
[366124715,1750077039975,-460.0,0.00020385,4]
[366124717,1750077039985,-338.04500064,0.00020385,4]
[366124719,1750077039995,-460.0,0.00020385,4]
[366124721,1750077040005,-472.63,0.00020385,4]
[366124722,1750077040015,-151.0,0.00020386,2]
[366124724,1750077040029,-151.0,0.00020386,2]
[366124726,1750077040039,-151.0,0.00020386,2]
[366124728,1750077040050,-151.0,0.00020386,2]
[366124730,1750077040060,-151.0,0.00020386,2]
[366124732,1750077040069,-151.0,0.00020386,2]
[366124734,1750077040079,-151.0,0.00020386,2]
[366124736,1750077040090,-151.0,0.00020386,2]
[366124738,1750077040100,-151.0,0.00020386,2]
[366124740,1750077040110,-151.0,0.00020386,2]
[366124742,1750077040120,-151.0,0.00020386,2]
[366124744,1750077040130,-151.0,0.00020386,2]
[366124746,1750077040140,-482.93,0.00020386,4]
[366124749,1750077040150,-460.0,0.00020386,4]
[366124751,1750077040160,-549.05542173,0.00020386,4]
[366124753,1750077040170,-460.0,0.00020386,4]
[366124755,1750077040181,-460.0,0.00020386,4]
[366124757,1750077040191,-440.14387784,0.00020386,4]
[366124759,1750077040202,-151.0,0.00020386,2]
[366124761,1750077040212,-151.0,0.00020386,2]
[366124763,1750077040222,-268.20526,0.00020386,2]
[366124765,1750077040232,-151.0,0.00020386,2]
[366124768,1750077040242,-151.0,0.00020386,2]
[366124769,1750077040252,-151.0,0.00020386,2]
[366124771,1750077040262,-151.0,0.00020386,2]
[366124773,1750077040272,-151.0,0.00020386,2]
[366124775,1750077040282,-151.0,0.00020386,2]
[366124777,1750077040291,-460.0,0.00020386,4]
[366124779,1750077040302,-460.0,0.00020386,4]
[366124782,1750077040313,-460.0,0.00020386,4]
[366124783,1750077040323,-460.0,0.00020386,4]
[366124785,1750077040333,-492.52054,0.00020386,2]
[366124787,1750077040345,-160.0,0.00020386,2]
[366124789,1750077040355,-492.520549,0.00020386,2]
[366124791,1750077040365,-814.28,0.00020386,2]
[366124793,1750077040375,-460.0,0.00020386,4]
[366124796,1750077040387,-151.0,0.00020386,2]
[366124798,1750077040397,-151.0,0.00020386,2]
[366124799,1750077040407,-151.0,0.00020386,2]
[366124801,1750077040418,-151.0,0.00020386,2]
[366124804,1750077040433,-151.0,0.00020386,2]
[366124806,1750077040444,-279.351853,0.00020386,2]
[366124808,1750077040455,-613.74,0.00020386,4]
[366124810,1750077040465,-151.0,0.00020386,2]
[366124812,1750077040475,-151.0,0.00020386,2]
[366124814,1750077040485,-460.0,0.00020386,4]
[366124816,1750077040495,-1944.95,0.00020386,4]
[366124818,1750077040505,-500.0,0.00020386,4]
[366124820,1750077040515,-460.0,0.00020386,4]
[366124822,1750077040524,-402.92107542,0.00020386,4]
[366124824,1750077040534,-460.0,0.00020386,4]
[366124826,1750077040544,-479.93,0.00020386,4]
[366124828,1750077040555,-460.0,0.00020386,4]
[366124830,1750077040564,-460.0,0.00020386,4]
[366124832,1750077040574,-460.0,0.00020386,4]
[366124834,1750077040584,-460.0,0.00020386,4]
[366124836,1750077040594,-175.27918428,0.00020386,4]
[366124838,1750077040604,-460.0,0.00020386,4]
[366124840,1750077040614,-151.0,0.00020387,2]
[366124842,1750077040624,-151.0,0.00020387,2]
[366124844,1750077040634,-206.71287,0.00020387,2]
[366124846,1750077040648,-151.0,0.00020387,2]
[366124848,1750077040658,-151.0,0.00020387,2]
[366124851,1750077040668,-151.0,0.00020387,2]
[366124853,1750077040678,-151.0,0.00020387,2]
[366124855,1750077040688,-151.0,0.00020387,2]
[366124857,1750077040699,-460.0,0.00020387,4]
[366124859,1750077040709,-190.822742,0.00020387,2]
[366124861,1750077040720,-508.42482785,0.00020431,2]
[366124863,1750077040730,-164.135,0.00020527,2]
[366124865,1750077040740,-157.788518,0.00020548,2]
[366124867,1750077040750,-1436.48,0.00020549,2]
[366124869,1750077040760,-256.0,0.00020555,2]
[366124871,1750077040770,-508.42482785,0.0002064,2]
[366124885,1750077040911,-460.0,0.00020657,4]
[366124888,1750077040922,-460.0,0.00020657,4]
[366124890,1750077040931,-552.29,0.00020657,4]
[366124891,1750077040941,-460.0,0.00020657,4]
[366124893,1750077040951,-1867.57,0.00020657,4]
[366124895,1750077040960,-1358.59,0.00020657,4]
[366124897,1750077040970,-1360.29,0.00020657,4]
[366124899,1750077040979,-460.0,0.00020658,4]
[366124901,1750077040989,-447.80830926,0.00020658,4]
[366124903,1750077040998,-460.0,0.00020658,4]
[366124905,1750077041008,-460.0,0.00020658,4]
[366124907,1750077041017,-460.0,0.00020658,4]
[366124909,1750077041027,-460.0,0.00020658,4]
[366124911,1750077041037,-460.0,0.00020658,4]
[366124913,1750077041047,-460.0,0.00020658,4]
[366124915,1750077041057,-460.0,0.00020658,4]
[366124917,1750077041067,-1446.68,0.00020658,4]
[366124919,1750077041076,-460.0,0.00020658,4]
[366124921,1750077041086,-2066.35,0.00020658,4]
[366124923,1750077041095,-460.0,0.00020658,4]
[366124925,1750077041104,-603.69933632,0.00020658,4]
[366124927,1750077041113,-460.0,0.00020658,4]
[366124929,1750077041123,-1693.16,0.00020658,4]
[366124931,1750077041132,-768.56,0.00020658,4]
[366124933,1750077041141,-351.79190541,0.00020658,4]
[366124935,1750077041151,-460.0,0.00020658,4]
[366124937,1750077041160,-795.22,0.00020658,4]
[366124939,1750077041170,-460.0,0.00020658,4]
[366124941,1750077041179,-460.0,0.00020658,4]
[366124943,1750077041189,-460.0,0.00020658,4]
[366124945,1750077041199,-460.0,0.00020658,4]
[366124946,1750077041208,-6631.12,0.00020658,4]
[366124948,1750077041217,-460.0,0.00020658,4]
[366124950,1750077041227,-460.0,0.00020658,4]
[366124952,1750077041237,-460.0,0.00020658,4]
[366124955,1750077041246,-460.0,0.00020658,4]
[366124956,1750077041256,-460.0,0.00020658,4]
[366124958,1750077041266,-460.0,0.00020658,4]
[366124960,1750077041275,-460.0,0.00020658,4]
[366124962,1750077041286,-823.93,0.00020658,4]
[366124964,1750077041295,-460.0,0.00020658,4]
[366124966,1750077041305,-229.83376739,0.00020658,4]
[366124968,1750077041315,-460.0,0.00020658,4]
[366124970,1750077041325,-460.0,0.00020658,4]
[366124971,1750077041334,-372.79298343,0.00020658,4]
[366124972,1750077041344,-460.0,0.00020658,4]
[366124973,1750077041354,-460.0,0.00020658,4]
[366124974,1750077041363,-460.0,0.00020658,4]
[366124975,1750077041373,-460.0,0.00020658,4]
[366124976,1750077041383,-619.14,0.00020658,4]
[366124977,1750077041393,-460.0,0.00020659,4]
[366124978,1750077041402,-460.0,0.00020659,4]
[366124979,1750077041412,-280.0,0.00020659,4]
[366124980,1750077041421,-460.0,0.00020659,4]
[366124982,1750077041431,-460.0,0.00020659,4]
[366124983,1750077041440,-460.0,0.00020659,4]
[366124985,1750077041451,-460.0,0.00020659,4]
[366124988,1750077041461,-207.9026124,0.00020659,4]
[366124990,1750077041470,-269.54942306,0.00020659,4]
[366124992,1750077041480,-460.0,0.00020659,4]
[366124993,1750077041489,-370.0,0.00020659,4]
[366124995,1750077041499,-460.0,0.00020659,4]
[366124998,1750077041508,-460.0,0.00020659,4]
[366125000,1750077041519,-460.0,0.00020659,4]
[366125001,1750077041528,-460.0,0.00020659,4]
[366125003,1750077041537,-460.0,0.00020659,4]
[366125005,1750077041547,-460.0,0.00020659,4]
[366125008,1750077041557,-460.0,0.00020659,4]
[366125010,1750077041566,-460.0,0.00020659,4]
[366125012,1750077041576,-460.0,0.00020659,4]
[366125014,1750077041586,-460.0,0.00020659,4]
[366125015,1750077041595,-242.95446106,0.00020659,4]
[366125017,1750077041605,-1368.19,0.00020659,4]
[366125019,1750077041614,-500.0,0.00020659,4]
[366125021,1750077041624,-460.0,0.00020659,4]
[366125023,1750077041634,-460.0,0.00020659,4]
[366125026,1750077041648,-460.0,0.00020659,4]
[366125027,1750077041658,-460.0,0.00020659,4]
[366125029,1750077041667,-658.42,0.00020659,4]
[366125031,1750077041677,-460.0,0.00020659,4]
[366125033,1750077041686,-460.0,0.00020659,4]
[366125035,1750077041696,-460.0,0.00020659,4]
[366125037,1750077041706,-460.0,0.00020659,4]
[366125039,1750077041717,-460.0,0.00020659,4]
[366125041,1750077041726,-460.0,0.00020659,4]
[366125043,1750077041736,-460.0,0.00020659,4]
[366125045,1750077041746,-759.75,0.00020659,4]
[366125047,1750077041756,-460.0,0.00020659,4]
[366125049,1750077041766,-460.0,0.00020659,4]
[366125052,1750077041778,-460.0,0.00020659,4]
[366125054,1750077041788,-460.0,0.00020659,4]
[366125056,1750077041798,-460.0,0.00020659,4]
[366125058,1750077041807,-506.61,0.00020659,4]
[366125060,1750077041817,-460.0,0.00020659,4]
[366125062,1750077041827,-460.0,0.00020659,4]
[366125063,1750077041837,-460.0,0.00020659,4]
[366125065,1750077041846,-460.0,0.00020659,4]
[366125068,1750077041856,-460.0,0.00020659,4]
[366125069,1750077041866,-420.0,0.00020659,4]
[366125072,1750077041876,-460.0,0.00020659,4]
[366125074,1750077041886,-460.0,0.00020659,4]
[366125075,1750077041895,-400.00545505,0.00020659,4]
[366125078,1750077041905,-460.0,0.00020659,4]
[366125080,1750077041914,-460.0,0.00020659,4]
[366125082,1750077041923,-460.0,0.00020659,4]
[366125083,1750077041932,-460.0,0.00020659,4]
[366125086,1750077041943,-460.60440768,0.00020659,4]
[366125087,1750077041952,-588.16597543,0.00020659,4]
[366125089,1750077041961,-651.99,0.00020659,4]
[366125091,1750077041971,-440.0,0.00020659,4]
[366125093,1750077041981,-460.0,0.00020659,4]
[366125096,1750077041991,-472.63,0.00020659,4]
[366125098,1750077042001,-151.0,0.0002066,2]
[366125099,1750077042011,-166.694528,0.0002066,2]
[366125101,1750077042020,-151.0,0.0002066,2]
[366125103,1750077042030,-151.0,0.0002066,2]
[366125106,1750077042040,-151.0,0.0002066,2]
[366125107,1750077042050,-151.0,0.0002066,2]
[366125110,1750077042060,-482.93,0.0002066,4]
[366125112,1750077042070,-460.0,0.0002066,4]
[366125114,1750077042079,-460.0,0.0002066,4]
[366125116,1750077042090,-151.0,0.0002066,2]
[366125118,1750077042099,-151.0,0.0002066,2]
[366125120,1750077042109,-151.0,0.0002066,2]
[366125122,1750077042120,-151.0,0.0002066,2]
[366125124,1750077042129,-151.0,0.0002066,2]
[366125126,1750077042139,-151.0,0.0002066,2]
[366125128,1750077042148,-398.51798065,0.0002066,4]
[366125130,1750077042157,-460.0,0.0002066,4]
[366125132,1750077042166,-440.0,0.0002066,4]
[366125134,1750077042176,-814.28,0.0002066,2]
[366125136,1750077042185,-460.0,0.0002066,4]
[366125138,1750077042195,-151.0,0.0002066,2]
[366125140,1750077042204,-151.0,0.0002066,2]
[366125142,1750077042214,-613.74,0.0002066,4]
[366125144,1750077042223,-460.0,0.0002066,4]
[366125146,1750077042233,-1944.95,0.0002066,4]
[366125148,1750077042243,-500.0,0.0002066,4]
[366125150,1750077042253,-440.0,0.0002066,4]
[366125152,1750077042262,-460.0,0.0002066,4]
[366125154,1750077042272,-479.93,0.0002066,4]
[366125156,1750077042281,-297.76637113,0.0002066,4]
[366125158,1750077042290,-460.0,0.0002066,4]
[366125160,1750077042300,-460.0,0.0002066,4]
[366125162,1750077042309,-320.0,0.0002066,4]
[366125164,1750077042318,-151.0,0.00020661,2]
[366125166,1750077042328,-151.0,0.00020661,2]
[366125168,1750077042337,-151.0,0.00020661,2]
[366125170,1750077042346,-151.0,0.00020661,2]
[366125172,1750077042355,-151.0,0.00020661,2]
[366125174,1750077042365,-151.0,0.00020661,2]
[366125176,1750077042375,-460.0,0.00020661,4]
[366125178,1750077042384,-500.0,0.00020688,2]
[366125180,1750077042393,-500.0,0.00020688,2]
[366125182,1750077042402,-335.49171361,0.00020688,2]
[366125184,1750077042411,-161.37590214,0.00020714,2]
[366125186,1750077042421,-1000.0,0.00020721,2]
[366125188,1750077042430,-966.74674808,0.00020721,2]
[366125190,1750077042440,-500.0,0.00020721,2]
[366125191,1750077042449,-313.0,0.00020751,2]
[366125193,1750077042459,-500.0,0.00020764,2]
[366125196,1750077042469,-256.0,0.00020895,2]
[366125197,1750077042479,-1000.0,0.00020921,2]
[366125199,1750077042488,-1000.0,0.00020921,2]
[366125201,1750077042498,-1000.0,0.00020921,2]
[366125203,1750077042507,-460.0,0.00020931,4]
[366125205,1750077042517,-460.0,0.00020931,4]
[366125207,1750077042527,-552.29,0.00020931,4]
[366125209,1750077042536,-525.88070435,0.00020931,4]
[366125211,1750077042546,-1867.57,0.00020931,4]
[366125213,1750077042555,-1358.59,0.00020931,4]
[366125215,1750077042564,-1360.29,0.00020931,4]
[366125217,1750077042574,-420.40785423,0.00020932,4]
[366125219,1750077042583,-553.82954701,0.00020932,4]
[366125220,1750077042592,-460.0,0.00020932,4]
[366125222,1750077042602,-460.0,0.00020932,4]
[366125224,1750077042611,-460.0,0.00020932,4]
[366125225,1750077042621,-460.0,0.00020932,4]
[366125227,1750077042631,-460.0,0.00020932,4]
[366125229,1750077042645,-460.0,0.00020932,4]
[366125231,1750077042654,-1446.68,0.00020932,4]
[366125233,1750077042663,-460.0,0.00020932,4]
[366125235,1750077042673,-2066.35,0.00020932,4]
[366125237,1750077042683,-460.0,0.00020932,4]
[366125239,1750077042692,-460.0,0.00020932,4]
[366125241,1750077042702,-1693.16,0.00020932,4]
[366125243,1750077042711,-768.56,0.00020932,4]
[366125245,1750077042723,-460.0,0.00020932,4]
[366125247,1750077042732,-795.22,0.00020932,4]
[366125249,1750077042742,-460.0,0.00020932,4]
[366125251,1750077042752,-460.0,0.00020932,4]
[366125253,1750077042761,-460.0,0.00020932,4]
[366125254,1750077042771,-460.0,0.00020932,4]
[366125256,1750077042780,-6631.12,0.00020932,4]
[366125258,1750077042790,-460.0,0.00020932,4]
[366125260,1750077042799,-460.0,0.00020932,4]
[366125262,1750077042808,-460.0,0.00020932,4]
[366125264,1750077042818,-460.0,0.00020932,4]
[366125266,1750077042827,-460.0,0.00020932,4]
[366125268,1750077042837,-460.0,0.00020932,4]
[366125270,1750077042846,-460.0,0.00020932,4]
[366125272,1750077042856,-823.93,0.00020932,4]
[366125274,1750077042865,-460.0,0.00020932,4]
[366125276,1750077042874,-460.0,0.00020932,4]
[366125278,1750077042884,-460.0,0.00020932,4]
[366125280,1750077042893,-460.0,0.00020932,4]
[366125282,1750077042902,-460.0,0.00020932,4]
[366125284,1750077042911,-460.0,0.00020932,4]
[366125286,1750077042920,-460.0,0.00020932,4]
[366125288,1750077042930,-619.14,0.00020932,4]
[366125290,1750077042939,-460.0,0.00020933,4]
[366125292,1750077042949,-460.0,0.00020933,4]
[366125294,1750077042958,-171.88158986,0.00020933,4]
[366125296,1750077042967,-460.0,0.00020933,4]
[366125297,1750077042977,-460.0,0.00020933,4]
[366125299,1750077042987,-196.03051896,0.00020933,4]
[366125309,1750077043095,-460.0,0.00020933,4]
[366125310,1750077043106,-460.0,0.00020933,4]
[366125311,1750077043116,-460.0,0.00020933,4]
[366125313,1750077043125,-460.0,0.00020933,4]
[366125314,1750077043135,-460.0,0.00020933,4]
[366125315,1750077043144,-460.0,0.00020933,4]
[366125316,1750077043154,-460.0,0.00020933,4]
[366125317,1750077043164,-460.0,0.00020933,4]
[366125318,1750077043173,-1368.19,0.00020933,4]
[366125319,1750077043182,-500.0,0.00020933,4]
[366125320,1750077043192,-460.0,0.00020933,4]
[366125321,1750077043202,-460.0,0.00020933,4]
[366125322,1750077043212,-460.0,0.00020933,4]
[366125323,1750077043222,-460.0,0.00020933,4]
[366125324,1750077043231,-658.42,0.00020933,4]
[366125325,1750077043241,-460.0,0.00020933,4]
[366125326,1750077043251,-460.0,0.00020933,4]
[366125327,1750077043261,-460.0,0.00020933,4]
[366125328,1750077043271,-460.0,0.00020933,4]
[366125329,1750077043280,-460.0,0.00020933,4]
[366125330,1750077043290,-460.0,0.00020933,4]
[366125331,1750077043299,-460.0,0.00020933,4]
[366125332,1750077043309,-460.0,0.00020933,4]
[366125333,1750077043319,-759.75,0.00020933,4]
[366125334,1750077043329,-460.0,0.00020933,4]
[366125335,1750077043339,-460.0,0.00020933,4]
[366125336,1750077043349,-460.0,0.00020933,4]
[366125337,1750077043358,-460.0,0.00020933,4]
[366125338,1750077043367,-460.0,0.00020933,4]
[366125339,1750077043377,-460.0,0.00020933,4]
[366125340,1750077043387,-460.0,0.00020933,4]
[366125341,1750077043398,-460.0,0.00020933,4]
[366125342,1750077043408,-460.0,0.00020933,4]
[366125343,1750077043418,-460.0,0.00020933,4]
[366125344,1750077043427,-301.495167,0.00020933,4]
[366125345,1750077043437,-460.0,0.00020933,4]
[366125346,1750077043448,-460.0,0.00020933,4]
[366125347,1750077043457,-651.99,0.00020933,4]
[366125348,1750077043467,-460.0,0.00020933,4]
[366125349,1750077043476,-472.63,0.00020933,4]
[366125350,1750077043487,-482.93,0.00020934,4]
[366125351,1750077043496,-460.0,0.00020934,4]
[366125352,1750077043506,-460.0,0.00020934,4]
[366125353,1750077043515,-460.0,0.00020934,4]
[366125354,1750077043525,-814.28,0.00020934,2]
[366125355,1750077043535,-460.0,0.00020934,4]
[366125356,1750077043545,-613.74,0.00020934,4]
[366125357,1750077043555,-460.0,0.00020934,4]
[366125358,1750077043565,-1944.95,0.00020934,4]
[366125359,1750077043575,-567.46870541,0.00020934,4]
[366125360,1750077043584,-479.93,0.00020934,4]
[366125361,1750077043593,-460.0,0.00020934,4]
[366125362,1750077043603,-460.0,0.00020934,4]
[366125363,1750077043612,-460.0,0.00020935,4]
[366125364,1750077043622,-2517.4686787,0.0002095,2]
[366125365,1750077043633,-5000.0,0.0002095,2]
[366125366,1750077043648,-207.4,0.0002095,2]
[366125367,1750077043657,-2008.58898125,0.0002095,2]
[366125368,1750077043667,-500.0,0.00020973,2]
[366125369,1750077043677,-500.0,0.00020973,2]
[366125370,1750077043687,-500.0,0.00020973,2]
[366125371,1750077043696,-500.34784896,0.00020973,2]
[366125372,1750077043708,-500.0,0.00020999,4]
[366125373,1750077043719,-500.0,0.00020999,4]
[366125374,1750077043729,-25561.86021721,0.00021,2]
[366125375,1750077043739,-151.0,0.00021,2]
[366125376,1750077043749,-151.0,0.00021,2]
[366125377,1750077043758,-232.601867,0.00021,2]
[366125378,1750077043767,-151.0,0.00021,2]
[366125379,1750077043777,-399.223384,0.00021,2]
[366125380,1750077043787,-151.0,0.00021,2]
[366125381,1750077043796,-399.223384,0.00021,2]
[366125382,1750077043806,-151.0,0.00021,2]
[366125383,1750077043816,-151.0,0.00021,2]
[366125384,1750077043825,-151.0,0.00021,2]
[366125385,1750077043834,-151.0,0.00021,2]
[366125386,1750077043844,-151.0,0.00021,2]
[366125387,1750077043853,-256.0,0.00021041,2]
[366125388,1750077043863,-256.0,0.00021115,2]
[366125389,1750077043880,-835.67987521,0.00021156,2]
[366125390,1750077043890,-160.0,0.00021156,2]
[366125391,1750077043899,-424.54874296,0.00021156,2]
[366125392,1750077043909,-160.0,0.00021156,2]
[366125393,1750077043918,-12537.89035583,0.00021156,2]
[366125394,1750077043927,-213.36025772,0.00021156,2]
[366125395,1750077043936,-252.47696192,0.00021169,4]
[366125396,1750077043946,-151.0,0.00021174,2]
[366125397,1750077043957,-151.0,0.00021174,2]
[366125398,1750077043966,-151.0,0.00021174,2]
[366125399,1750077043975,-151.0,0.00021175,2]
[366125400,1750077043984,-151.0,0.00021175,2]
[366125401,1750077043993,-151.0,0.00021175,2]
[366125402,1750077044003,-399.223384,0.00021177,2]
[366125403,1750077044012,-172.170783,0.00021177,2]
[366125404,1750077044021,-399.223384,0.00021177,2]
[366125405,1750077044031,-151.0,0.00021178,2]
[366125406,1750077044040,-151.0,0.00021178,2]